lending/lending_fUSD_20251020
["ID","MTS","AMOUNT","RATE_DAILY","PERIOD"]
[391922273,1760994636819,-500.0,0.00032314,5]
[391922274,1760994636829,-500.0,0.00032314,5]
[391922275,1760994636839,-361.35,0.00032379,30]
[391922276,1760994636848,-500.0,0.00032491,7]
[391922277,1760994636858,-800.0,0.00032497,7]
[391922278,1760994636869,-500.0,0.00032531,7]
[391922279,1760994636879,-500.0,0.0003261,7]
[391922280,1760994636888,-800.0,0.00032729,7]
[391922281,1760994636898,-500.0,0.00032766,7]
[391922282,1760994636908,-500.0,0.00032829,7]
[391922283,1760994636917,-800.0,0.00032835,7]
[391922284,1760994636927,-501.8511031,0.00032862,5]
[391922285,1760994636937,-782.82441453,0.00032862,5]
[391922286,1760994636947,-563.41384084,0.00032862,5]
[391922287,1760994636957,-1000.0,0.00032876,30]
[391922288,1760994636967,-3321.33405202,0.00032887,2]
[391922289,1760994636976,-200.0,0.00032909,10]
[391922290,1760994636986,-31655.85074667,0.0003297,2]
[391922291,1760994636995,-150.0,0.00032987,2]
[391922292,1760994637005,-500.0,0.00032987,2]
[391922293,1760994637016,-500.0,0.00032987,2]
[391922294,1760994637025,-150.0,0.00032987,2]
[391922295,1760994637035,-150.0,0.00032987,2]
[391922296,1760994637045,-150.0,0.00032987,2]
[391922297,1760994637054,-150.0,0.00032987,2]
[391922298,1760994637063,-150.0,0.00032987,2]
[391922299,1760994637073,-500.0,0.00032989,7]
[391922300,1760994637082,-174.09570811,0.00033,120]
[391922301,1760994637092,-181.02524295,0.00033,120]
[391922302,1760994637101,-236.7562325,0.00033,120]
[391922303,1760994637111,-10068.6585583,0.00033,120]
[391922304,1760994637121,-442.20397379,0.00033,120]
[391922305,1760994637132,-1002.2783392,0.00033,2]
[391922306,1760994637142,-546.62,0.00033007,2]
[391922307,1760994637153,-150.0,0.00033007,2]
[391922308,1760994637162,-176.03,0.00033007,2]
[391922309,1760994637172,-301.84,0.00033007,2]
[391922310,1760994637182,-1000.0,0.00033013,30]
[391922311,1760994637192,-3321.33405199,0.00033033,2]
[391922312,1760994637202,-150.0,0.00033042,2]
[391922313,1760994637212,-500.0,0.00033042,2]
[391922314,1760994637224,-500.0,0.00033042,2]
[391922315,1760994637233,-193.34204274,0.00033042,2]
[391922316,1760994637243,-150.0,0.00033042,2]
[391922317,1760994637253,-150.0,0.00033042,2]
[391922318,1760994637263,-150.0,0.00033042,2]
[391922319,1760994637272,-150.0,0.00033097,2]
[391922320,1760994637281,-500.0,0.00033097,2]
[391922321,1760994637292,-500.0,0.00033097,2]
[391922322,1760994637301,-222.9738915,0.00033097,2]
[391922323,1760994637311,-150.0,0.00033097,2]
[391922324,1760994637320,-150.0,0.00033097,2]
[391922325,1760994637329,-1000.0,0.0003315,30]
[391922326,1760994637338,-295.05109304,0.00033151,2]
[391922327,1760994637348,-160.04273586,0.00033151,2]
[391922328,1760994637357,-291.34,0.00033165,2]
[391922329,1760994637367,-170.37592,0.00033174,2]
[391922330,1760994637376,-3321.33405199,0.00033179,2]
[391922331,1760994637386,-1425.0,0.00033279,2]
[391922332,1760994637395,-1000.0,0.00033287,30]
[391922334,1760994637404,-1095.4434,0.00033299,2]
[391922336,1760994637414,-314.34005937,0.00033299,3]
[391922338,1760994637423,-250.0,0.00033299,3]
[391922340,1760994637432,-151.0,0.00033299,3]
[391922343,1760994637441,-270.70515425,0.00033299,3]
[391922345,1760994637450,-152.24899255,0.00033299,3]
[391922347,1760994637459,-187.75463284,0.00033299,3]
[391922349,1760994637468,-250.0,0.00033299,3]
[391922351,1760994637477,-283.01585621,0.00033299,3]
[391922353,1760994637487,-218.44,0.000333,7]
[391922355,1760994637496,-10039.59327582,0.000333,3]
[391922357,1760994637506,-15177.63594263,0.000333,4]
[391922359,1760994637515,-14822.36405737,0.000333,5]
[391922361,1760994637524,-200.0,0.000333,2]
[391922362,1760994637533,-200.0,0.000333,2]
[391922363,1760994637542,-1425.0,0.00033306,2]
[391922364,1760994637551,-3321.33405199,0.00033325,2]
[391922365,1760994637560,-500.0,0.00033331,7]
[391922366,1760994637569,-1425.0,0.00033353,2]
[391922367,1760994637578,-904.98077131,0.00033375,7]
[391922368,1760994637588,-166.66,0.00033376,2]
[391922369,1760994637597,-200.0,0.0003341,2]
[391922370,1760994637606,-200.0,0.00033418,2]
[391922371,1760994637615,-200.0,0.00033418,2]
[391922372,1760994637624,-200.0,0.00033418,2]
[391922373,1760994637633,-200.0,0.00033418,2]
[391922374,1760994637642,-200.0,0.00033418,2]
[391922375,1760994637651,-200.0,0.00033423,2]
[391922376,1760994637660,-1000.0,0.00033424,30]
[391922377,1760994637669,-200.0,0.00033429,2]
[391922378,1760994637678,-200.0,0.00033429,2]
[391922379,1760994637689,-200.0,0.00033429,2]
[391922380,1760994637698,-581.83859165,0.00033453,2]
[391922381,1760994637708,-530.41988366,0.00033465,2]
[391922382,1760994637718,-3321.33405199,0.00033471,2]
[391922384,1760994637727,-1000.0,0.0003348,2]
[391922386,1760994637737,-500.0,0.00033483,7]
[391922388,1760994637747,-1425.0,0.00033524,2]
[391922390,1760994637756,-475.11,0.00033545,2]
[391922392,1760994637766,-2500.0,0.00033545,2]
[391922394,1760994637775,-1425.0,0.00033553,2]
[391922408,1760994637902,-1000.0,0.00033561,30]
[391922410,1760994637911,-581.83859161,0.00033567,2]
[391922412,1760994637920,-800.0,0.00033579,7]
[391922415,1760994637929,-1000.0,0.00033591,2]
[391922417,1760994637937,-1425.0,0.00033597,2]
[391922419,1760994637947,-500.0,0.00033614,7]
[391922421,1760994637956,-3321.33405199,0.00033618,2]
[391922423,1760994637965,-200.0,0.00033633,2]
[391922425,1760994637974,-200.0,0.00033633,2]
[391922427,1760994637983,-581.83859161,0.0003368,2]
[391922429,1760994637993,-494.86945699,0.00033698,30]
[391922431,1760994638002,-1723.0,0.00033699,7]
[391922433,1760994638011,-970.1478,0.00033701,2]
[391922435,1760994638020,-150.0,0.00033707,2]
[391922437,1760994638029,-500.0,0.00033744,7]
[391922439,1760994638038,-500.0,0.00033756,8]
[391922441,1760994638047,-3321.33405199,0.00033764,2]
[391922443,1760994638056,-500.0,0.00033767,7]
[391922445,1760994638066,-1425.0,0.00033781,2]
[391922447,1760994638075,-581.83859161,0.00033794,2]
[391922449,1760994638085,-337.43,0.0003382,2]
[391922451,1760994638094,-826.46,0.0003382,2]
[391922453,1760994638104,-1425.0,0.00033841,2]
[391922455,1760994638114,-500.0,0.00033886,7]
[391922457,1760994638123,-161.20562563,0.000339,120]
[391922459,1760994638132,-586.93173237,0.000339,120]
[391922461,1760994638141,-181.02524295,0.000339,120]
[391922463,1760994638151,-236.7562325,0.000339,120]
[391922465,1760994638160,-10068.6585583,0.000339,120]
[391922467,1760994638171,-442.20397379,0.000339,120]
[391922469,1760994638180,-581.83859161,0.00033908,2]
[391922471,1760994638189,-3321.33405199,0.0003391,2]
[391922473,1760994638198,-4002.86344067,0.00033918,2]
[391922475,1760994638209,-500.0,0.00033946,7]
[391922477,1760994638221,-168.0,0.00033979,2]
[391922479,1760994638230,-800.0,0.00033993,7]
[391922481,1760994638240,-300.0,0.00034,10]
[391922483,1760994638251,-14717.0079192,0.00034008,3]
[391922485,1760994638260,-800.0,0.00034018,13]
[391922487,1760994638270,-800.0,0.00034018,13]
[391922489,1760994638279,-800.0,0.00034018,13]
[391922491,1760994638288,-800.0,0.00034018,13]
[391922493,1760994638299,-800.0,0.00034018,13]
[391922495,1760994638308,-800.0,0.00034018,13]
[391922497,1760994638317,-800.0,0.00034018,13]
[391922500,1760994638327,-524.0,0.00034018,13]
[391922502,1760994638336,-1184.0,0.00034019,2]
[391922504,1760994638346,-2547.0,0.00034019,2]
[391922505,1760994638355,-902.0,0.00034019,2]
[391922508,1760994638365,-581.83859161,0.00034022,2]
[391922510,1760994638374,-1000.0,0.00034026,2]
[391922511,1760994638383,-3321.33405199,0.00034056,2]
[391922513,1760994638392,-150.0,0.00034069,2]
[391922516,1760994638402,-152.0,0.00034071,3]
[391922517,1760994638411,-500.0,0.0003409,8]
[391922519,1760994638421,-504.56981096,0.0003409,8]
[391922521,1760994638430,-500.0,0.0003409,8]
[391922523,1760994638439,-156.0,0.000341,120]
[391922525,1760994638449,-168.0,0.00034126,2]
[391922528,1760994638459,-503.64389533,0.00034129,2]
[391922530,1760994638468,-500.0,0.00034129,8]
[391922532,1760994638478,-500.0,0.00034129,8]
[391922534,1760994638487,-500.0,0.00034129,8]
[391922536,1760994638496,-526.0554708,0.00034129,8]
[391922537,1760994638505,-14717.0079192,0.0003413,3]
[391922539,1760994638515,-581.83859161,0.00034135,2]
[391922541,1760994638525,-14717.0079192,0.0003417,3]
[391922544,1760994638535,-1425.0,0.00034179,2]
[391922546,1760994638544,-29434.0158384,0.0003418,3]
[391922548,1760994638554,-14717.0079192,0.00034182,3]
[391922550,1760994638563,-29434.0158384,0.0003419,3]
[391922552,1760994638573,-29434.0158384,0.00034192,3]
[391922553,1760994638582,-9682.54202934,0.00034192,3]
[391922555,1760994638591,-3227.51400978,0.00034192,3]
[391922557,1760994638601,-613.2919,0.00034193,3]
[391922559,1760994638610,-151.0,0.00034197,14]
[391922561,1760994638620,-49771.169,0.000342,2]
[391922563,1760994638630,-5000.0,0.000342,2]
[391922565,1760994638639,-160.35958553,0.000342,2]
[391922568,1760994638649,-335.22,0.00034201,8]
[391922570,1760994638658,-156.39355509,0.00034202,30]
[391922572,1760994638670,-156.39355509,0.00034202,30]
[391922574,1760994638679,-156.39355509,0.00034202,30]
[391922576,1760994638688,-156.39355509,0.00034202,30]
[391922578,1760994638698,-156.39355509,0.00034202,30]
[391922579,1760994638707,-156.39355509,0.00034202,30]
[391922581,1760994638716,-156.39355509,0.00034202,30]
[391922584,1760994638726,-156.39355509,0.00034202,30]
[391922586,1760994638735,-156.39355509,0.00034202,30]
[391922588,1760994638745,-156.39355509,0.00034202,30]
[391922590,1760994638755,-156.39,0.00034202,30]
[391922592,1760994638764,-13923.33467752,0.00034202,3]
[391922599,1760994638828,-1082.3,0.0003395,2]
[391922643,1760994639237,-477.462943,0.00027397,2]
[391922667,1760994639548,-296.66660731,0.00027397,2]
[391922668,1760994639559,-2057.2832658,0.00027397,2]
[391922999,1760994642924,-800.8,0.00027397,2]
[391923296,1760994645904,-367.78718389,0.00027397,2]
[391923297,1760994645915,-2751.0,0.00033288,120]
[391923298,1760994645924,-150.0,0.00033387,3]
[391923299,1760994645933,-2920.56344061,0.0003395,2]
[391923300,1760994645943,-4002.86344061,0.00033981,2]
[391923302,1760994645953,-4002.86344061,0.00034013,2]
[391923304,1760994645963,-150.0,0.00034133,3]
[391923306,1760994645972,-41631.66532248,0.00034202,3]
[391923308,1760994645982,-3321.33405199,0.00034202,2]
[391923310,1760994645991,-1425.0,0.00034211,2]
[391923312,1760994646000,-2000.0,0.00034222,3]
[391923314,1760994646010,-152.0,0.00034246,7]
[391923316,1760994646020,-261.55498643,0.00034246,7]
[391923318,1760994646030,-152.0,0.00034246,7]
[391923320,1760994646039,-298.0,0.00034246,7]
[391923322,1760994646049,-500.0,0.00034246,120]
[391923324,1760994646059,-581.83859161,0.00034249,2]
[391923326,1760994646069,-3227.51400978,0.0003426,3]
[391923329,1760994646081,-14717.0079192,0.0003427,3]
[391923331,1760994646090,-3227.51400978,0.0003427,3]
[391923333,1760994646099,-500.0,0.0003428,8]
[391923335,1760994646109,-500.0,0.0003428,8]
[391923337,1760994646119,-14717.0079192,0.0003428,3]
[391923339,1760994646128,-41957.6821271,0.0003428,3]
[391923341,1760994646138,-3227.51400978,0.0003429,3]
[391923343,1760994646147,-33361.50686365,0.0003429,3]
[391923345,1760994646158,-501.96442498,0.0003429,3]
[391924226,1760994667208,195.0,0.00030018,120]
[391924229,1760994725997,250.0,0.00034349,30]
[391924230,1760994726255,520.0,0.00034349,30]
[391924231,1760994726354,151.0,0.00034349,30]
[391924232,1760994726832,160.0,0.00034349,30]
[391924233,1760994726894,539.24,0.00034349,30]
[391924234,1760994726995,151.0,0.00034349,30]
[391924235,1760994727874,151.0,0.00034349,30]
[391924236,1760994728372,151.0,0.00034349,30]
[391924237,1760994728876,500.0,0.00034349,30]
[391924238,1760994728995,151.0,0.00034349,30]
[391924239,1760994729524,500.0,0.00034349,30]
[391924240,1760994729631,151.0,0.00034349,30]
[391924241,1760994729997,250.0,0.00034349,30]
[391924242,1760994730170,500.0,0.00034349,30]
[391924243,1760994730282,500.0,0.00034349,30]
[391924244,1760994730331,151.0,0.00034349,30]
[391924245,1760994730638,250.0,0.00034349,30]
[391924246,1760994730783,500.0,0.00034349,30]
[391924247,1760994730928,500.0,0.00034349,30]
[391924248,1760994731058,151.0,0.00034349,30]
[391924249,1760994731317,250.0,0.00034349,30]
[391924250,1760994731443,500.0,0.00034349,30]
[391924251,1760994731709,151.0,0.00034349,30]
[391924252,1760994731922,250.0,0.00034349,30]
[391924253,1760994732029,500.0,0.00034349,30]
[391924254,1760994732088,500.0,0.00034349,30]
[391924255,1760994732140,151.0,0.00034349,30]
[391924256,1760994732197,151.0,0.00034349,30]
[391924257,1760994732811,250.0,0.00034349,30]
[391924258,1760994732859,500.0,0.00034349,30]
[391924259,1760994732906,600.0,0.00034349,30]
[391924260,1760994732946,151.0,0.00034349,30]
[391924261,1760994732993,500.0,0.00034349,30]
[391924262,1760994733038,151.0,0.00034349,30]
[391924263,1760994733283,250.0,0.00034349,30]
[391924264,1760994733327,500.0,0.00034349,30]
[391924265,1760994733431,151.0,0.00034349,30]
[391924266,1760994733484,500.0,0.00034349,30]
[391924267,1760994733552,151.0,0.00034349,30]
[391924268,1760994734105,250.0,0.00034349,30]
[391924269,1760994734178,500.0,0.00034349,30]
[391924270,1760994734218,151.0,0.00034349,30]
[391924271,1760994734440,500.0,0.00034349,30]
[391924272,1760994734564,250.0,0.00034349,30]
[391924273,1760994734740,500.0,0.00034349,30]
[391924274,1760994735309,250.0,0.00034349,30]
[391924275,1760994735466,500.0,0.00034349,30]
[391924276,1760994735508,500.0,0.00034349,30]
[391924277,1760994735911,500.0,0.00034349,30]
[391924278,1760994736305,500.0,0.00034349,30]
[391924279,1760994736347,500.0,0.00034349,30]
[391924280,1760994736556,500.0,0.00034349,30]
[391924281,1760994736597,250.0,0.00034349,30]
[391924282,1760994736747,225.0,0.00034349,30]
[391924283,1760994736900,500.0,0.00034349,30]
[391924284,1760994736945,500.0,0.00034349,30]
[391924285,1760994737157,500.0,0.00034349,30]
[391924286,1760994737205,250.0,0.00034349,30]
[391924287,1760994737536,500.0,0.00034349,30]
[391924288,1760994737582,500.0,0.00034349,30]
[391924289,1760994737804,500.0,0.00034349,30]
[391924290,1760994737856,250.0,0.00034349,30]
[391924291,1760994738152,500.0,0.00034349,30]
[391924292,1760994738213,500.0,0.00034349,30]
[391924293,1760994738451,500.0,0.00034349,30]
[391924294,1760994738494,250.0,0.00034349,30]
[391924295,1760994738634,322.6107,0.00034349,30]
[391924296,1760994738756,500.0,0.00034349,30]
[391924297,1760994738844,500.0,0.00034349,30]
[391924298,1760994739142,250.0,0.00034349,30]
[391924299,1760994739228,500.0,0.00034349,30]
[391924300,1760994739410,500.0,0.00034349,30]
[391924301,1760994739512,500.0,0.00034349,30]
[391924302,1760994739787,250.0,0.00034349,30]
[391924303,1760994739900,500.0,0.00034349,30]
[391924304,1760994740071,500.0,0.00034349,30]
[391924305,1760994740111,500.0,0.00034349,30]
[391924306,1760994740560,500.0,0.00034349,30]
[391924307,1760994740601,250.0,0.00034349,30]
[391924308,1760994740740,500.0,0.00034349,30]
[391924309,1760994740784,500.0,0.00034349,30]
[391924310,1760994741226,250.0,0.00034349,30]
[391924311,1760994741400,500.0,0.00034349,30]
[391924312,1760994741441,500.0,0.00034349,30]
[391924313,1760994741800,154.25226641,0.00034349,30]
[391924314,1760994741988,250.0,0.00034349,30]
[391924315,1760994742542,500.0,0.00034349,30]
[391924316,1760994742767,250.0,0.00034349,30]
[391924317,1760994743022,500.0,0.00034349,30]
[391924318,1760994743068,200.0,0.00034349,59]
[391924319,1760994743214,500.0,0.00034349,30]
[391924320,1760994743273,250.0,0.00034349,30]
[391924321,1760994743326,207.4,0.00034349,30]
[391924322,1760994743368,500.0,0.00034349,30]
[391924323,1760994743861,500.0,0.00034349,30]
[391924324,1760994743938,215.0738,0.00034349,60]
[391924325,1760994743984,500.0,0.00034349,30]
[391924326,1760994744517,500.0,0.00034349,30]
[391924327,1760994744581,500.0,0.00034349,30]
[391924328,1760994744622,223.0315306,0.00034349,35]
[391924329,1760994745222,500.0,0.00034349,30]
[391924330,1760994745282,231.28369723,0.00034349,34]
[391924331,1760994745883,500.0,0.00034349,30]
[391924332,1760994745931,239.84119403,0.00034349,33]
[391924333,1760994746511,500.0,0.00034349,30]
[391924334,1760994746572,248.71531821,0.00034349,32]
[391924335,1760994747155,500.0,0.00034349,30]
[391924336,1760994747207,257.91778498,0.00034349,34]
[391924337,1760994747250,250.0,0.00034349,30]
[391924338,1760994747812,500.0,0.00034349,30]
[391924339,1760994747852,267.46074303,0.00034349,30]
[391924340,1760994747891,250.0,0.00034349,30]
[391924341,1760994748432,500.0,0.00034349,30]
[391924342,1760994748489,250.0,0.00034349,30]
[391924343,1760994749194,250.0,0.00034349,30]
[391924344,1760994749704,201.93286098,0.00034349,30]
[391924345,1760994749776,250.0,0.00034349,30]
[391924346,1760994750460,250.0,0.00034349,30]
[391924347,1760994751109,250.0,0.00034349,30]
[391924348,1760994751782,250.0,0.00034351,30]
[391924349,1760994752448,250.0,0.00034351,30]
[391924350,1760994753352,250.0,0.00034351,30]
[391924351,1760994754480,250.0,0.00034351,30]
[391924352,1760994755162,250.0,0.00034351,30]
[391924353,1760994756295,250.0,0.00034351,30]
[391924354,1760994756969,250.0,0.00034351,30]
[391924355,1760994757604,250.0,0.00034351,30]
[391924356,1760994758263,250.0,0.00034351,30]
[391924357,1760994758968,250.0,0.00034351,30]
[391924358,1760994759593,250.0,0.00034351,30]
[391924359,1760994760239,250.0,0.00034351,30]
[391924360,1760994760889,250.0,0.00034351,30]
[391924362,1760994765203,151.0,0.00034351,30]
[391924364,1760994765827,151.0,0.00034351,30]
[391924365,1760994766450,151.0,0.00034351,30]
[391924366,1760994767137,151.0,0.00034351,30]
[391924367,1760994767790,151.0,0.00034351,30]
[391924380,1760995024878,205.51726934,0.00034351,30]
[391924382,1760995030722,383.0153107,0.00034351,30]
[391924384,1760995032877,500.0,0.00034351,30]
[391924385,1760995033310,500.0,0.00034351,30]
[391924386,1760995034500,500.0,0.00034351,30]
[391924387,1760995035126,500.0,0.00034351,30]
[391924388,1760995035785,500.0,0.00034351,30]
[391924389,1760995036420,500.0,0.00034351,30]
[391924390,1760995037075,500.0,0.00034351,30]
[391924391,1760995037528,500.0,0.00034351,30]
[391924392,1760995037726,500.0,0.00034351,30]
[391924393,1760995038419,518.5,0.00034351,30]
[391924416,1760995325284,368.2839526,0.00034351,30]
[391924435,1760995632851,509.3,0.00011219,2]
[391924436,1760995632964,509.3,0.00011809,2]
[391924437,1760995633065,509.3,0.00012399,2]
[391924438,1760995633301,509.3,0.0001299,2]
[391924453,1760995764014,-509.3,0.0001358,2]
[391924454,1760995764037,-44.65461,0.00013876,2]
[391924455,1760995765612,-195.0,0.00013876,2]
[391924464,1760995831726,-120.29720302,0.00013876,2]
[391924467,1760995831738,-509.3,0.00014171,2]
[391924468,1760995831748,-43.9891274,0.00014761,2]
[391924469,1760995831761,-465.3108726,0.00014761,2]
[391924470,1760995831772,-1200.0,0.00014899,2]
[391924471,1760995831782,-300.0,0.00014899,2]
[391924472,1760995831793,-203.8769712,0.000149,2]
[391924473,1760995831804,-39823.15027361,0.000149,2]
[391924474,1760995831814,-250.0,0.00014938,2]
[391924475,1760995831823,-500.0,0.00014973,2]
[391924476,1760995831834,-500.0,0.00014973,2]
[391924477,1760995831847,-500.0,0.00014999,2]
[391924478,1760995831858,-519.74163889,0.00014999,2]
[391924479,1760995831867,-185.15042765,0.00014999,2]
[391924480,1760995831879,-500.0,0.00014999,2]
[391924481,1760995831889,-500.0,0.00014999,2]
[391924482,1760995831900,-500.0,0.00014999,2]
[391924483,1760995831911,-250.0,0.00014999,2]
[391924484,1760995831921,-500.0,0.00014999,2]
[391924485,1760995831931,-522.39576433,0.00014999,2]
[391924486,1760995831940,-25121.85807004,0.00015,2]
[391924487,1760995831954,-270995.9868526,0.00015,2]
[391924488,1760995831965,-21104.2699745,0.00015,2]
[391924489,1760995831986,-5065.25011403,0.00015,2]
[391924490,1760995832006,-21085.13897375,0.00015,2]
[391924491,1760995832029,-3001.04849208,0.00015,2]
[391924508,1760995837655,-401.0247,0.00014485,2]
[391924509,1760995837666,-140.1054,0.00015,2]
[391924510,1760995837710,-2300.36096053,0.00015,2]
[391924511,1760995837722,-656.10710594,0.00015,2]
[391924512,1760995837772,-281.55,0.00015,2]
[391924703,1760995839779,-1397.8791,0.00015,2]
[391924715,1760995839893,-1116.6288,0.00015,2]
[391924722,1760995839959,-549.45998531,0.00015,2]
[391924729,1760995840016,-681.60051613,0.00015,2]
[391924742,1760995840134,-1756.0,0.00015,2]
[391924820,1760995842803,-661.709808,0.00015,2]
[391924821,1760995842815,-500.0,0.00015,2]
[391924822,1760995842863,-318.15070377,0.00015,2]
[391924823,1760995842952,-262.734,0.00015,2]
[391924824,1760995842963,-636.95363033,0.00015,2]
[391924833,1760995846009,-886.52768017,0.00015,2]
[391924834,1760995846073,-3246.10395739,0.00015,2]
[391924835,1760995846135,-626.8265502,0.00015,2]
[391924836,1760995846146,-3990.0,0.00015,2]
[391924837,1760995846157,-300.57795713,0.00015,2]
[391924838,1760995846253,-3139.77681255,0.00015,2]
[391924856,1760995928285,250.0,0.00034351,30]
[391924891,1760996236135,194.10851694,0.00034351,30]
[391924920,1760996661971,-193.02,0.00013262,2]
[391924921,1760996666592,-250.0,0.00013925,2]
[391924922,1760996672036,-250.0,0.00014424,2]
[391924925,1760996679921,-948.60168362,0.00014588,2]
[391924926,1760996679943,-250.0,0.00014588,2]
[391924927,1760996679966,-300.0,0.00014588,2]
[391924928,1760996689414,-668.50972898,0.00014669,2]
[391924929,1760996697301,-687.402,0.000147,2]
[391924930,1760996715515,-150.0,0.00013488,2]
[391924931,1760996715537,-84.02254948,0.00013488,2]
[391924938,1760996910494,-65.97745052,0.00013488,2]
[391924939,1760996910518,-234.02254948,0.00013699,2]
[391924957,1760997031899,-15.74745052,0.00013699,2]
[391924958,1760997031908,-170.37591,0.0001485,2]
[391924959,1760997031919,-5573.32853601,0.000149,2]
[391924960,1760997031930,-160.3595855,0.000149,2]
[391924961,1760997032102,-203.8769712,0.000149,2]
[391924962,1760997032114,-156.2745748,0.000149,2]
[391924963,1760997032125,-500.0,0.00014973,2]
[391924964,1760997032135,-271.2537506,0.00014973,2]
[391924965,1760997032152,-229.71913741,0.00014973,2]
[391924966,1760997032162,-500.0,0.00014973,2]
[391924967,1760997032172,-502.11857811,0.00014973,2]
[391924968,1760997032182,-502.34693502,0.00014973,2]
[391924969,1760997032192,-500.0,0.00014973,2]
[391924970,1760997032203,-515.33110889,0.00014973,2]
[391924971,1760997032213,-500.0,0.00014973,2]
[391924972,1760997032223,-500.0,0.00014973,2]
[391924973,1760997032233,-500.0,0.00014973,2]
[391924975,1760997032242,-41407.0139717,0.00014985,2]
[391924977,1760997032251,-9669.1828681,0.00014999,2]
[391924979,1760997032260,-500.0,0.00014999,2]
[391924980,1760997032270,-545.48659225,0.00014999,2]
[391924981,1760997032279,-500.0,0.00014999,2]
[391924982,1760997032289,-486.39813315,0.00014999,2]
[391924983,1760997032298,-500.0,0.00014999,2]
[391924985,1760997032307,-500.0,0.00014999,2]
[391924987,1760997032318,-506.29907877,0.00014999,2]
[391924988,1760997032326,-572.10680401,0.00014999,2]
[391924989,1760997032335,-37642.98049786,0.00015,2]
[391924990,1760997032348,-446.73919771,0.00015,2]
[391924992,1760997037824,-500.0,0.00015,2]
[391924995,1760997037937,-2237.95272535,0.00015,2]
[391924996,1760997037949,-1281.82377038,0.00015,2]
[391925193,1760997040222,-52224.60842204,0.00015,2]
[391926043,1760997125683,500.0,0.00034345,30]
[391926044,1760997126158,500.0,0.00034345,30]
[391926045,1760997126217,600.0,0.00034345,30]
[391926046,1760997126336,500.0,0.00034345,30]
[391926047,1760997126865,600.0,0.00034345,30]
[391926048,1760997126956,500.0,0.00034345,30]
[391926049,1760997127521,600.0,0.00034345,30]
[391926050,1760997128114,500.0,0.00034345,30]
[391926051,1760997128245,600.0,0.00034345,30]
[391926052,1760997128768,500.0,0.00034345,30]
[391926053,1760997128934,250.0,0.00034345,30]
[391926054,1760997129005,520.0,0.00034345,30]
[391926055,1760997129432,500.0,0.00034345,30]
[391926056,1760997129616,250.0,0.00034345,30]
[391926057,1760997129674,500.0,0.00034345,30]
[391926058,1760997130343,500.0,0.00034345,30]
[391926059,1760997130991,500.0,0.00034345,30]
[391926060,1760997131738,500.0,0.00034345,30]
[391926061,1760997131795,500.0,0.00034345,30]
[391926062,1760997132209,500.0,0.00034345,30]
[391926063,1760997132266,500.0,0.00034345,30]
[391926064,1760997132860,500.0,0.00034345,30]
[391926065,1760997132908,500.0,0.00034345,30]